fUSD/lending_fUSD_20260107
["ID","MTS","AMOUNT","RATE_DAILY","PERIOD"]
[400693138,1767779486979,-200.0,0.00038894,2]
[400693139,1767779486989,-200.0,0.00038894,2]
[400693140,1767779486998,-200.0,0.00038894,2]
[400693141,1767779487010,-200.0,0.00038894,2]
[400693142,1767779487019,-200.0,0.00038894,2]
[400693143,1767779487028,-200.0,0.00038894,2]
[400693144,1767779487037,-200.0,0.00038894,2]
[400693145,1767779487047,-200.0,0.00038894,2]
[400693146,1767779487057,-200.0,0.00038894,2]
[400693147,1767779487066,-200.0,0.00038894,2]
[400693148,1767779487075,-200.0,0.00038894,2]
[400693149,1767779487085,-200.0,0.00038894,2]
[400693150,1767779487095,-200.0,0.00038894,2]
[400693151,1767779487104,-200.0,0.00038894,2]
[400693152,1767779487114,-200.0,0.00038894,2]
[400693153,1767779487123,-200.0,0.00038894,2]
[400693154,1767779487133,-200.0,0.00038894,2]
[400693155,1767779487143,-200.0,0.00038894,2]
[400693156,1767779487152,-200.0,0.00038894,2]
[400693157,1767779487162,-200.0,0.00038894,2]
[400693158,1767779487172,-200.0,0.00038894,2]
[400693159,1767779487181,-200.0,0.00038894,2]
[400693160,1767779487192,-200.0,0.00038894,2]
[400693161,1767779487202,-200.0,0.00038894,2]
[400693162,1767779487212,-200.0,0.00038894,2]
[400693163,1767779487222,-200.0,0.00038894,2]
[400693164,1767779487232,-200.0,0.00038894,2]
[400693165,1767779487241,-200.0,0.00038894,2]
[400693166,1767779487252,-200.0,0.00038894,2]
[400693167,1767779487261,-200.0,0.00038894,2]
[400693168,1767779487271,-200.0,0.00038894,2]
[400693169,1767779487280,-200.0,0.00038894,2]
[400693170,1767779487290,-200.0,0.00038894,2]
[400693171,1767779487301,-200.0,0.00038894,2]
[400693172,1767779487311,-200.0,0.00038894,2]
[400693173,1767779487321,-200.0,0.00038894,2]
[400693174,1767779487331,-172.0,0.00038894,2]
[400693175,1767779487341,-800.0,0.00038894,13]
[400693176,1767779487351,-800.0,0.00038894,13]
[400693177,1767779487360,-800.0,0.00038894,13]
[400693178,1767779487370,-442.61035473,0.00038894,13]
[400693179,1767779489296,-151.0,0.00018,2]
[400693180,1767779489318,-151.0,0.00031507,2]
[400693181,1767779489331,-193.044745,0.00035963,7]
[400693182,1767779489385,-806.955255,0.00035963,7]
[400693183,1767779489401,-109.394745,0.00036328,7]
[400693184,1767779492951,-1.7e-07,0.00031507,31]
[400693185,1767779493695,-780.26055841,0.00016005,2]
[400693186,1767779493705,-780.26055841,0.00016005,2]
[400693187,1767779493715,-780.26055841,0.00016005,2]
[400693188,1767779493724,-348.52874209,0.00016005,2]
[400693189,1767779494039,-431.73181632,0.00016005,2]
[400693190,1767779494052,-780.26055841,0.00016005,2]
[400693191,1767779494062,-780.26055841,0.00016005,2]
[400693192,1767779494072,-780.26055841,0.00016005,2]
[400693193,1767779494081,-780.26055841,0.00016005,2]
[400693194,1767779494091,-780.26055841,0.00016005,2]
[400693195,1767779494101,-780.26055841,0.00016005,2]
[400693196,1767779494110,-780.26055841,0.00016005,2]
[400693197,1767779494123,-780.26055841,0.00016005,2]
[400693198,1767779494132,-780.26055841,0.00016005,2]
[400693199,1767779494142,-780.26055841,0.00016005,2]
[400693200,1767779494151,-780.26055841,0.00016005,2]
[400693201,1767779494161,-780.26055841,0.00016005,2]
[400693202,1767779494170,-780.26055841,0.00016005,2]
[400693203,1767779494180,-1000.0,0.00024658,2]
[400693204,1767779494190,-2436.0,0.00031344,2]
[400693205,1767779494200,-150.99999983,0.00031507,31]
[400693206,1767779494210,-590.852157,0.00031507,31]
[400693207,1767779494220,-151.0,0.00031507,31]
[400693208,1767779494229,-151.0,0.00031507,31]
[400693209,1767779494239,-151.0,0.00031507,31]
[400693210,1767779494248,-151.0,0.00031507,31]
[400693211,1767779494257,-590.852157,0.00031507,31]
[400693212,1767779494267,-151.0,0.00031507,31]
[400693213,1767779494276,-151.0,0.00031507,31]
[400693214,1767779494286,-151.0,0.00031507,31]
[400693215,1767779494295,-2436.0,0.00034344,2]
[400693216,1767779494306,-1000.0,0.00035409,2]
[400693217,1767779494316,-1000.0,0.00035419,2]
[400693218,1767779494326,-119.19258082,0.00035554,2]
[400693219,1767779494338,-448.67186079,0.00035554,2]
[400693220,1767779494657,-4581.6,0.00016006,2]
[400693221,1767779494668,-6414.2,0.00016006,2]
[400693229,1767779562662,10000.01,0.00015906,2]
[400693230,1767779562690,10000.01,0.00015906,2]
[400693231,1767779562718,10000.01,0.00015906,2]
[400693232,1767779562745,10000.01,0.00015906,2]
[400693233,1767779562771,10000.01,0.00015906,2]
[400693234,1767779562796,10000.01,0.00015906,2]
[400693235,1767779562823,10000.01,0.00015906,2]
[400693236,1767779562849,10000.01,0.00015906,2]
[400693237,1767779562875,10000.01,0.00015906,2]
[400693238,1767779562902,10000.01,0.00015906,2]
[400693239,1767779563370,-2000.02869699,0.00015906,2]
[400693240,1767779598318,298.48,0.00030278,120]
[400693241,1767779598371,-300.0,0.00015905,2]
[400693242,1767779608128,-9400.01,0.00015906,2]
[400693243,1767779608320,-10000.01,0.00015906,2]
[400693244,1767779608375,-10000.01,0.00015906,2]
[400693245,1767779608492,-10000.01,0.00015906,2]
[400693246,1767779608597,-10000.01,0.00015906,2]
[400693247,1767779608720,-10000.01,0.00015906,2]
[400693248,1767779608836,-10000.01,0.00015906,2]
[400693249,1767779608945,-10000.01,0.00015906,2]
[400693250,1767779609083,-10000.01,0.00015906,2]
[400693251,1767779609208,-10000.01,0.00015906,2]
[400693258,1767779636938,-10000.01,0.00015906,2]
[400693259,1767779637172,-10000.01,0.00015906,2]
[400693260,1767779637483,-10000.01,0.00015906,2]
[400693261,1767779637579,-10000.01,0.00015906,2]
[400693262,1767779637779,-595.171943,0.00015826,2]
[400693263,1767779637819,-8809.666114,0.00015826,2]
[400693264,1767779637988,-10000.01,0.00015906,2]
[400693265,1767779638188,-10000.01,0.00015906,2]
[400693266,1767779638521,-10000.01,0.00015906,2]
[400693267,1767779638742,-10000.01,0.00015906,2]
[400693268,1767779638980,-10000.01,0.00015906,2]
[400693269,1767779659252,-300.0,0.00015905,2]
[400693270,1767779659295,-9400.01,0.00015906,2]
[400693271,1767779659440,-10000.01,0.00015906,2]
[400693272,1767779659646,-10000.01,0.00015906,2]
[400693273,1767779659851,-10000.01,0.00015906,2]
[400693274,1767779660029,-10000.01,0.00015906,2]
[400693275,1767779660208,-10000.01,0.00015906,2]
[400693276,1767779660415,-10000.01,0.00015906,2]
[400693277,1767779660618,-10000.01,0.00015906,2]
[400693278,1767779660807,-10000.01,0.00015906,2]
[400693279,1767779660988,-10000.01,0.00015906,2]
[400693280,1767779673005,292.80365275,0.000328,120]
[400693281,1767779689017,-10000.01,0.00015906,2]
[400693282,1767779689739,-317.8102,0.00015806,2]
[400693283,1767779689822,-9364.3896,0.00015906,2]
[400693284,1767779689837,-10000.01,0.00015906,2]
[400693285,1767779690183,-10000.01,0.00015906,2]
[400693286,1767779690354,-10000.01,0.00015906,2]
[400693287,1767779690552,-10000.01,0.00015906,2]
[400693288,1767779690749,-10000.01,0.00015906,2]
[400693289,1767779690891,-10000.01,0.00015906,2]
[400693290,1767779691036,-10000.01,0.00015906,2]
[400693291,1767779691164,-10000.01,0.00015906,2]
[400693299,1767779715623,-352.26997757,0.00015806,2]
[400693300,1767779715658,-2515.05360064,0.00015806,2]
[400693301,1767779715743,-4265.36284358,0.00015806,2]
[400693302,1767779716015,-1200.0,0.00015905,2]
[400693303,1767779716047,-300.0,0.00015905,2]
[400693304,1767779716481,-7000.01,0.00015906,2]
[400693305,1767779716621,-10000.01,0.00015906,2]
[400693306,1767779716715,-185.49648793,0.00015905,2]
[400693307,1767779716724,-230.49522891,0.00015905,2]
[400693308,1767779716734,-500.0,0.00015905,2]
[400693309,1767779716744,-500.0,0.00015905,2]
[400693310,1767779716754,-500.0,0.00015905,2]
[400693311,1767779716764,-500.0,0.00015905,2]
[400693312,1767779716774,-7584.01828316,0.00015906,2]
[400693313,1767779716846,-500.0,0.00015905,2]
[400693314,1767779716882,-500.0,0.00015905,2]
[400693315,1767779716936,-500.0,0.00015905,2]
[400693316,1767779716945,-8500.01,0.00015906,2]
[400693317,1767779717080,-500.0,0.00015905,2]
[400693318,1767779717126,-500.0,0.00015905,2]
[400693319,1767779717163,-500.0,0.00015905,2]
[400693320,1767779717198,-500.0,0.00015905,2]
[400693321,1767779717231,-500.0,0.00015905,2]
[400693322,1767779717265,-500.0,0.00015905,2]
[400693323,1767779717375,-500.0,0.00015905,2]
[400693324,1767779717385,-500.0,0.00015905,2]
[400693325,1767779717395,-5000.01,0.00015906,2]
[400693326,1767779717490,-500.0,0.00015905,2]
[400693327,1767779717527,-500.0,0.00015905,2]
[400693328,1767779717576,-500.0,0.00015905,2]
[400693329,1767779717696,-500.0,0.00015905,2]
[400693330,1767779717730,-500.0,0.00015905,2]
[400693331,1767779717754,-500.0,0.00015905,2]
[400693332,1767779717769,-500.0,0.00015905,2]
[400693333,1767779717780,-500.0,0.00015905,2]
[400693334,1767779717790,-3000.01,0.00015906,2]
[400693335,1767779717839,-204.54583166,0.00015905,2]
[400693336,1767779717917,-295.45416834,0.00015905,2]
[400693337,1767779717938,-204.54583166,0.00015905,2]
[400693338,1767779717949,-295.45416834,0.00015906,2]
[400693339,1767779717973,-500.0,0.00015905,2]
[400693340,1767779718005,-7000.01,0.00015906,2]
[400693341,1767779718168,-204.54583166,0.00015906,2]
[400693342,1767779718191,-9590.91833668,0.00015906,2]
[400693343,1767779718227,-10000.01,0.00015906,2]
[400693344,1767779725707,-396.40155279,0.00015905,2]
[400693345,1767779725756,-9207.20689442,0.00015906,2]
[400693346,1767779725824,-10000.01,0.00015906,2]
[400693347,1767779751486,-500.0,0.00015905,2]
[400693348,1767779751519,-500.0,0.00015905,2]
[400693349,1767779751552,-500.0,0.00015905,2]
[400693350,1767779751586,-500.0,0.00015905,2]
[400693351,1767779751620,-500.0,0.00015905,2]
[400693352,1767779751653,-500.0,0.00015905,2]
[400693353,1767779751686,-500.0,0.00015905,2]
[400693354,1767779751719,-500.0,0.00015905,2]
[400693355,1767779751752,-500.0,0.00015905,2]
[400693356,1767779751784,-500.0,0.00015905,2]
[400693357,1767779751931,-500.0,0.00015905,2]
[400693358,1767779751964,-500.0,0.00015905,2]
[400693359,1767779751997,-500.0,0.00015905,2]
[400693360,1767779752029,-500.0,0.00015905,2]
[400693361,1767779752067,-500.0,0.00015905,2]
[400693362,1767779752101,-500.0,0.00015905,2]
[400693363,1767779752134,-500.0,0.00015905,2]
[400693364,1767779752167,-500.0,0.00015905,2]
[400693365,1767779752199,-500.0,0.00015905,2]
[400693366,1767779752232,-500.0,0.00015905,2]
[400693367,1767779752884,-500.0,0.00015905,2]
[400693368,1767779752917,-500.0,0.00015905,2]
[400693369,1767779752949,-505.05092408,0.00015905,2]
[400693370,1767779753355,-5.07092408,0.00015906,2]
[400693371,1767779753388,-6989.90815184,0.00015906,2]
[400693372,1767779753486,-10000.01,0.00015906,2]
[400693373,1767779753510,-10000.01,0.00015906,2]
[400693374,1767779753552,-10000.01,0.00015906,2]
[400693381,1767779809470,-250.0,0.00015906,2]
[400693382,1767779809538,-9500.01,0.00015906,2]
[400693383,1767779809917,-10000.01,0.00015906,2]
[400693393,1767780022507,1020.818506,0.00032877,120]
[400693413,1767780186822,5000.0,0.000202,30]
[400693421,1767780207801,6968.58,0.00015366,2]
[400693448,1767780264762,998.913481,0.00015725,2]
[400693458,1767780304037,150.0,0.00015745,2]
[400693459,1767780308485,175.0,0.00023291,120]
[400693460,1767780309649,175.0,0.00024455,120]
[400693461,1767780311005,175.0,0.00025678,120]
[400693462,1767780312653,175.0,0.00026962,120]
[400693463,1767780313550,175.0,0.0002831,120]
[400693464,1767780314680,175.0,0.00029725,120]
[400693465,1767780315895,175.0,0.00031212,120]
[400693484,1767780317125,175.0,0.00032772,120]
[400693486,1767780325656,246.52,0.00015132,2]
[400693487,1767780328413,1014.74941667,0.00032876,120]
[400693499,1767780354768,150.0,0.00015132,2]
[400693500,1767780354822,150.0,0.00015132,120]
[400693501,1767780357839,166.66,0.00014376,2]
[400693502,1767780358029,166.66,0.00014678,2]
[400693503,1767780358218,166.66,0.00014981,2]
[400693504,1767780358413,166.66,0.00015284,2]
[400693505,1767780358615,166.66,0.00015586,2]
[400693506,1767780379594,1438.08,0.00015088,2]
[400693507,1767780386077,2647.6,0.00015088,2]
[400693512,1767780517641,1034.38,0.00015088,2]
[400693513,1767780548976,845.521735,7.945e-05,2]
[400693517,1767780570067,8120.108265,0.00015118,2]
[400693518,1767780570089,10000.01,0.00015118,2]
[400693519,1767780570111,3211.12240004,0.00015118,2]
[400693520,1767780570134,3211.12240004,0.00015118,2]
[400693521,1767780570487,3211.12240004,0.00015118,2]
[400693522,1767780570510,3211.12240004,0.00015118,2]
[400693523,1767780570532,1642.12213484,0.00015118,2]
[400693547,1767780632143,-195.0,0.00015701,2]
[400693549,1767780632153,-536.38855193,0.00015704,2]
[400693563,1767780637221,-547.77308168,0.00015704,2]
[400693564,1767780637232,-4436.16911741,0.00015704,2]
[400693628,1767780638228,-1696.74093979,0.00015704,2]
[400693629,1767780638238,-1200.0,0.00015705,2]
[400693630,1767780638248,-300.0,0.00015705,2]
[400693631,1767780638257,-300.0,0.00015705,2]
[400693632,1767780638267,-604.4291702,0.00015705,2]
[400693633,1767780638276,-281.0,0.00015706,2]
[400693634,1767780638286,-7187.64074873,0.00015706,2]
[400693635,1767780638336,-992812.35925127,0.00015706,2]
[400693636,1767780638346,-300.0,0.00015804,2]
[400693637,1767780638355,-250.0,0.00015804,2]
[400693638,1767780638365,-300.0,0.00015805,2]
[400693639,1767780638374,-300.0,0.00015805,2]
[400693640,1767780638383,-303.86948785,0.00015805,2]
[400693641,1767780638392,-303.86948785,0.00015805,2]
[400693642,1767780638402,-776.6986,0.00015805,2]
[400693643,1767780638412,-49177.9333,0.00015805,2]
[400693644,1767780638421,-300.0,0.00015805,2]
[400693645,1767780638431,-2638.85993798,0.00015806,2]
[400693646,1767780638449,-6520.32819642,0.00015806,2]
[400693678,1767780638759,-500.0,0.00015806,2]
[400693680,1767780638768,-303.86948785,0.00015806,2]
[400693682,1767780638779,-166.66,0.00015827,2]
[400693684,1767780638788,-294.01703467,0.00015861,2]
[400693686,1767780638797,-166.66,0.00015889,2]
[400693688,1767780638806,-1190.77,0.00015896,2]
[400693690,1767780638815,-500.0,0.00015896,2]
[400693692,1767780638823,-200.0,0.00015896,2]
[400693694,1767780638832,-151.0,0.00015896,2]
[400693696,1767780638841,-151.0,0.00015896,2]
[400693698,1767780638850,-151.0,0.00015896,2]
[400693700,1767780638859,-151.0,0.00015896,2]
[400693702,1767780638869,-151.0,0.00015896,2]
[400693704,1767780638879,-151.0,0.00015896,2]
[400693706,1767780638888,-151.0,0.00015896,2]
[400693708,1767780638897,-200.0,0.00015896,2]
[400693710,1767780638906,-151.0,0.00015896,2]
[400693712,1767780638916,-151.0,0.00015896,2]
[400693713,1767780638925,-151.0,0.00015896,2]
[400693715,1767780638934,-151.0,0.00015896,2]
[400693717,1767780638943,-500.0,0.00015905,2]
[400693719,1767780638952,-500.0,0.00015905,2]
[400693721,1767780638961,-500.0,0.00015905,2]
[400693723,1767780638971,-500.0,0.00015905,2]
[400693725,1767780638980,-258.58725296,0.00015905,2]
[400693727,1767780638990,-500.0,0.00015905,2]
[400693729,1767780638999,-500.0,0.00015905,2]
[400693731,1767780639008,-500.0,0.00015905,2]
[400693733,1767780639018,-500.0,0.00015905,2]
[400693735,1767780639027,-234.22420722,0.00015905,2]
[400693737,1767780639036,-500.0,0.00015905,2]
[400693739,1767780639045,-500.0,0.00015905,2]
[400693741,1767780639056,-192.1211424,0.00015906,2]
[400693743,1767780639066,-152.54840679,0.00015906,2]
[400693745,1767780639077,-1000.0,0.00015906,2]
[400693747,1767780639086,-863.56,0.00015918,2]
[400693749,1767780639095,-5000.0,0.00016,2]
[400693751,1767780639105,-500.0,0.00016005,2]
[400693753,1767780639115,-500.0,0.00016005,2]
[400693755,1767780639124,-500.0,0.00016005,2]
[400693757,1767780639133,-610.79386728,0.00016005,2]
[400693759,1767780639143,-500.0,0.00016105,2]
[400693761,1767780639152,-500.0,0.00016105,2]
[400693763,1767780639161,-500.0,0.00016105,2]
[400693765,1767780639173,-500.0,0.00016105,2]
[400693767,1767780639184,-500.0,0.00016105,2]
[400693769,1767780639194,-500.0,0.00016105,2]
[400693771,1767780639205,-500.0,0.00016105,2]
[400693773,1767780639216,-500.0,0.00016105,2]
[400693776,1767780639236,-514.71165586,0.00016105,2]
[400693778,1767780639247,-530.37627741,0.00016105,2]
[400693780,1767780639258,-500.0,0.00016105,2]
[400693782,1767780639269,-500.0,0.00016105,2]
[400693784,1767780639280,-500.0,0.00016105,2]
[400693786,1767780639293,-500.0,0.00016105,2]
[400693788,1767780639304,-500.0,0.00016105,2]
[400693790,1767780639314,-1190.77,0.0001617,2]
[400693792,1767780639325,-500.0,0.00016204,2]
[400693794,1767780639337,-500.0,0.00016204,2]
[400693796,1767780639347,-500.0,0.00016204,2]
[400693798,1767780639359,-314.03395353,0.00016204,2]
[400693801,1767780639369,-500.0,0.00016204,2]
[400693802,1767780639379,-500.0,0.00016204,2]
[400693804,1767780639390,-166.66,0.00016349,2]
[400693806,1767780639399,-5665.87,0.00016438,2]
[400693808,1767780639409,-165.14,0.0001644,2]
[400693810,1767780639423,-1190.77,0.00016444,2]
[400693812,1767780639438,-500.0,0.00016444,2]
[400693814,1767780639449,-200.0,0.00016444,2]
[400693816,1767780639459,-200.0,0.00016444,2]
[400693819,1767780639469,-5000.0,0.000165,2]
[400693821,1767780639481,-863.56,0.00016515,2]
[400693823,1767780639490,-151.23,0.00016569,2]
[400693825,1767780639500,-151.0,0.00016579,2]
[400693826,1767780639511,-151.0,0.00016579,2]
[400693829,1767780639521,-151.0,0.00016582,2]
[400693831,1767780639531,-151.0,0.00016582,2]
[400693833,1767780639541,-165.33,0.00016712,2]
[400693835,1767780639550,-1190.77,0.00016718,2]
[400693837,1767780639560,-166.66,0.00016872,2]
[400693839,1767780639569,-510.0,0.00016927,2]
[400693841,1767780639579,-1190.77,0.00016992,2]
[400693843,1767780639588,-500.0,0.00016992,2]
[400693845,1767780639599,-5000.0,0.00017,2]
[400693847,1767780639613,-250.0,0.00017,2]
[400693849,1767780639623,-247.0,0.00017087,2]
[400693851,1767780639633,-863.56,0.00017112,2]
[400693852,1767780639644,-420.0,0.00017176,2]
[400693853,1767780639654,-420.0,0.00017176,2]
[400693854,1767780639666,-193.66,0.00017226,2]
[400693855,1767780639675,-1971.04,0.00017263,2]
[400693856,1767780639685,-1680.0,0.00017263,2]
[400693857,1767780639695,-195.0,0.00017266,2]
[400693858,1767780639704,-300.0,0.00017266,2]
[400693859,1767780639713,-287.1272259,0.00017266,2]
[400693860,1767780639723,-376.22104568,0.00017266,2]
[400693861,1767780639733,-1190.77,0.00017266,2]
[400693862,1767780639743,-250.0,0.00017384,2]
[400693863,1767780639753,-195.0,0.00017384,2]
[400693864,1767780639763,-300.0,0.00017384,2]
[400693865,1767780639773,-600.0,0.00017384,2]
[400693866,1767780639783,-600.0,0.00017384,2]
[400693867,1767780639792,-166.66,0.00017394,2]
[400693868,1767780639807,-1028.85,0.00017413,2]
[400693869,1767780639816,-500.0,0.00017456,2]
[400693870,1767780639826,-183.51,0.00017457,2]
[400693871,1767780639835,-500.0,0.00017478,2]
[400693872,1767780639845,-500.0,0.00017478,2]
[400693873,1767780639854,-500.0,0.00017478,2]
[400693874,1767780639864,-5000.0,0.000175,2]
[400693875,1767780639874,-1190.77,0.0001754,2]
[400693876,1767780639883,-500.0,0.0001754,2]
[400693877,1767780639893,-500.0,0.00017594,2]
[400693878,1767780639904,-632.9385196,0.00017594,2]
[400693879,1767780639915,-256.01043912,0.00017594,2]
[400693880,1767780639924,-500.0,0.00017594,2]
[400693881,1767780639934,-500.0,0.00017594,2]
[400693882,1767780639943,-500.0,0.00017594,2]
[400693883,1767780639953,-500.0,0.00017594,2]
[400693884,1767780639962,-500.0,0.00017594,2]
[400693885,1767780639972,-500.0,0.00017594,2]
[400693886,1767780639981,-500.0,0.00017594,2]
[400693887,1767780639994,-500.0,0.00017594,2]
[400693888,1767780640004,-500.0,0.00017594,2]
[400693889,1767780640014,-500.0,0.00017594,2]
[400693890,1767780640023,-500.0,0.00017594,2]
[400693891,1767780640033,-500.0,0.00017594,2]
[400693892,1767780640043,-507.59595538,0.00017594,2]
[400693893,1767780640053,-500.0,0.00017594,2]
[400693894,1767780640062,-500.0,0.00017594,2]
[400693895,1767780640071,-500.0,0.00017594,2]
[400693896,1767780640081,-646.42152045,0.00017594,2]
[400693897,1767780640091,-500.0,0.00017594,2]
[400693898,1767780640100,-367.99147805,0.00017594,2]
[400693899,1767780640110,-500.0,0.00017594,2]
[400693900,1767780640120,-500.0,0.00017594,2]
[400693901,1767780640130,-506.27282765,0.00017594,2]
[400693902,1767780640139,-500.0,0.00017594,2]
[400693903,1767780640147,-500.0,0.00017594,2]
[400693904,1767780640158,-500.0,0.00017594,2]
[400693905,1767780640169,-500.0,0.00017594,2]
[400693906,1767780640179,-863.56,0.00017709,2]
[400693907,1767780640193,-286.0,0.00017712,2]
[400693908,1767780640203,-286.0,0.0001772,2]
[400693909,1767780640214,-286.0,0.00017812,2]
[400693910,1767780640224,-1190.77,0.00017814,2]
[400693911,1767780640234,-286.0,0.00017815,2]
[400693912,1767780640244,-286.0,0.00017822,2]
[400693913,1767780640254,-10000.0,0.000179,2]
[400693914,1767780640264,-166.66,0.00017916,2]
[400693915,1767780640274,-286.0,0.00017944,2]
[400693916,1767780640284,-500.0,0.00017995,2]
[400693917,1767780640294,-259.94132505,0.00017995,2]
[400693918,1767780640304,-521.20759762,0.00017999,2]
[400693919,1767780640314,-5000.0,0.00018,2]
[400693920,1767780640324,-286.0,0.00018021,2]
[400693921,1767780640335,-1190.77,0.00018088,2]
[400693922,1767780640344,-500.0,0.00018088,2]
[400693923,1767780640355,-286.0,0.00018092,2]
[400693924,1767780640365,-11200.91,0.0001814,2]
[400693925,1767780640377,-1000.0,0.00018142,2]
[400693926,1767780640390,-500.0,0.00018142,2]
[400693927,1767780640400,-501.43294385,0.00018142,2]
[400693928,1767780640410,-500.85459949,0.00018142,2]
[400693929,1767780640421,-1000.0,0.00018142,2]
[400693930,1767780640432,-500.0,0.00018142,2]
[400693931,1767780640444,-1000.0,0.00018142,2]
[400693932,1767780640455,-1000.0,0.00018142,2]
[400693933,1767780640465,-821.82288534,0.00018142,2]
[400693934,1767780640477,-1000.0,0.00018142,2]
[400693935,1767780640491,-1000.0,0.00018142,2]
[400693936,1767780640502,-1000.0,0.00018142,2]
[400693937,1767780640513,-500.73448024,0.00018142,2]
[400693938,1767780640523,-1000.0,0.00018142,2]
[400693939,1767780640533,-1015.65451742,0.00018142,2]
[400693940,1767780640544,-556.0741427,0.00018142,2]
[400693941,1767780640554,-1009.96734995,0.00018142,2]
[400693942,1767780640563,-1128.37348131,0.00018142,2]
[400693943,1767780640573,-500.0,0.00018142,2]
[400693944,1767780640584,-1000.77724877,0.00018142,2]
[400693945,1767780640594,-1000.0,0.00018142,2]
[400693946,1767780640606,-500.0,0.00018142,2]
[400693947,1767780640616,-1000.0,0.00018142,2]
[400693948,1767780640626,-286.0,0.00018162,2]
[400693949,1767780640636,-193.66,0.00018183,2]
[400693950,1767780640647,-863.56,0.00018306,2]
[400693951,1767780640657,-286.0,0.00018315,2]
[400693952,1767780640667,-1190.77,0.00018362,2]
[400693953,1767780640677,-2638.8599379,0.00018392,2]
[400693954,1767780640687,-6520.3281964,0.00018392,2]
[400693955,1767780640697,-286.0,0.00018418,2]
[400693956,1767780640708,-286.0,0.00018435,2]
[400693957,1767780640719,-166.66,0.00018439,2]
[400693958,1767780640729,-2093.35,0.00018469,2]
[400693959,1767780640738,-500.0,0.00018482,2]
[400693960,1767780640748,-513.27916728,0.00018482,2]
[400693961,1767780640758,-524.2180077,0.00018482,2]
[400693962,1767780640767,-500.0,0.00018482,2]
[400693963,1767780640777,-500.0,0.00018482,2]
[400693964,1767780640787,-500.0,0.00018482,2]
[400693965,1767780640797,-500.0,0.00018482,2]
[400693966,1767780640807,-500.0,0.00018482,2]
[400693967,1767780640817,-5000.0,0.000185,2]
[400693968,1767780640827,-163.42127782,0.00018517,2]
[400693969,1767780640837,-1190.77,0.00018636,2]
[400693970,1767780640847,-504.00666552,0.00018636,2]
[400693971,1767780640857,-286.0,0.00018676,2]
[400693972,1767780640868,-1500.0,0.0001869,2]
[400693973,1767780640878,-529.13192156,0.0001869,2]
[400693974,1767780640888,-500.0,0.0001869,2]
[400693975,1767780640899,-1037.00577444,0.0001869,2]
[400693976,1767780640910,-1505.38555235,0.0001869,2]
[400693977,1767780640921,-1000.0,0.0001869,2]
[400693978,1767780640931,-1500.0,0.0001869,2]
[400693979,1767780640941,-1500.0,0.0001869,2]
[400693980,1767780640951,-1500.0,0.0001869,2]
[400693981,1767780640961,-1024.05521125,0.0001869,2]
[400693982,1767780640971,-270.98651139,0.000187,2]
[400693983,1767780640990,-5530.17,0.0001871,2]
[400693984,1767780641001,-286.0,0.00018748,2]
[400693985,1767780641011,-587.0,0.00018785,2]
[400693986,1767780641021,-587.0,0.00018785,2]
[400693987,1767780641031,-286.0,0.00018811,2]
[400693988,1767780641042,-286.0,0.00018881,2]